bitfinex-derivatives/quotes_ETHF0:USTF0_20250224
["timestamp","ask_amount","ask_price","bid_price","bid_amount"]
[1740434539747,0.76179,2626.1,2626.0,3.7627]
[1740434539946,0.76191,2625.7,2625.6,3.2078]
[1740434540149,3.2078,2626.1,2625.3,3.7792]
[1740434540352,0.76189,2625.8,2625.5,0.76196]
[1740434540554,0.762,2625.4,2625.3,3.7792]
[1740434540754,0.76203,2625.3,2625.2,8.80330042]
[1740434541153,3.2078,2625.8,2625.2,8.80330042]
[1740434541451,0.76203,2625.3,2625.2,8.80330042]
[1740434541948,0.00570375,2625.9,2625.0,11.58032785]
[1740434541949,0.00570375,2625.9,2625.1,3.2078]
[1740434542155,0.00570375,2625.9,2625.7,3.2078]
[1740434542353,3.628,2625.8,2624.9,3.2078]
[1740434542553,3.2078,2625.6,2624.6,3.2078]
[1740434543060,1.90528,2625.1,2624.3,3.2078]
[1740434543260,1.90515,2625.2,2624.3,3.2078]
[1740434543455,0.7622,2624.7,2624.6,3.2078]
[1740434543656,3.2078,2625.0,2623.8,3.798]
[1740434543955,3.632,2625.1,2623.8,3.798]
[1740434543956,0.76236,2624.2,2623.9,0.76242]
[1740434544161,3.64,2624.8,2624.1,3.2078]
[1740434544358,0.00571505,2624.7,2624.1,3.2078]
[1740434544559,3.2078,2624.2,2623.3,2.28466]
[1740434544754,0.76281,2622.6,2622.5,8.80330042]
[1740434544957,0.76284,2622.5,2622.2,13.65178344]
[1740434545258,5.11511,2622.3,2621.6,6.87328938]
[1740434545458,3.2078,2622.5,2621.6,6.87328938]
[1740434545655,3.2078,2622.2,2621.6,6.87328938]
[1740434545851,3.2078,2622.3,2621.6,6.87328938]
[1740434546252,3.2078,2621.7,2621.3,13.38593923]
[1740434546463,3.97096,2621.4,2621.3,13.38593923]
[1740434546659,7.0558,2621.4,2621.1,20.0661291]
[1740434546852,7.0558,2621.4,2621.0,22.93271897]
[1740434546853,0.76325,2621.1,2621.0,1.94028192]
[1740434547052,0.76357,2620.0,2619.1,34.58799576]
[1740434547254,0.7638,2619.2,2619.1,34.58799576]
[1740434547460,0.7638,2619.2,2619.0,0.3]
[1740434547461,0.764,2618.5,2618.1,3.2078]
[1740434547660,0.76418,2617.9,2617.8,1.0]
[1740434547960,3.2078,2617.9,2617.8,0.12897]
[1740434548160,4.448,2618.2,2617.6,43.56046172]
[1740434548161,0.76424,2617.7,2617.6,43.56046172]
[1740434548365,5.36124,2617.7,2617.6,40.35266172]
[1740434548574,5.36124,2617.7,2617.6,34.5745551]
[1740434548861,0.31842016,2617.7,2617.6,1.44912205]
[1740434549059,3.2078,2618.1,2617.8,15.25440601]
[1740434549263,0.30005149,2619.5,2618.4,21.36189938]
[1740434549562,3.2078,2619.0,2618.5,21.36189938]
[1740434549756,3.81544,2621.7,2619.6,21.36189938]
[1740434549757,3.97132,2620.2,2619.6,21.36189938]
[1740434549954,3.97132,2620.2,2618.5,31.6]
[1740434549955,4.907,2620.9,2620.0,3.2078]
[1740434550158,3.2078,2620.1,2618.9,3.2078]
[1740434550357,3.2078,2619.9,2619.2,3.2078]
[1740434550655,0.7636,2619.9,2619.8,1.58659368]
[1740434550855,0.7636,2619.9,2619.2,0.00572617]
[1740434550856,0.76377,2619.3,2619.2,0.00572617]
[1740434551057,1.90858,2620.5,2619.2,0.00572617]
[1740434551058,0.76936617,2619.8,2619.2,3.2078]
[1740434551364,0.76386,2619.0,2618.9,3.2078]
[1740434551561,4.985,2619.0,2617.8,21.36189938]
[1740434551758,0.764,2618.6,2617.4,52.74156122]
[1740434551959,21.155,2618.7,2617.4,3.2078]
[1740434552161,21.155,2618.7,2615.6,0.5591]
[1740434552162,3.2078,2617.9,2617.0,3.2078]
[1740434552472,0.76453,2616.7,2616.6,3.2078]
[1740434552661,5.009,2616.7,2615.9,3.2078]
[1740434552861,3.2078,2616.8,2615.9,3.2078]
[1740434553061,3.2078,2616.8,2616.3,0.06670831]
[1740434553363,3.2078,2616.4,2614.6,0.76512]
[1740434553564,3.2078,2614.7,2614.1,15.25440601]
[1740434553758,3.2078,2614.2,2613.2,0.5592]
[1740434553964,3.2078,2613.7,2613.1,3.2078]
[1740434554162,1.91266,2614.9,2611.7,3.82986]
[1740434554163,3.2078,2613.2,2612.6,0.76571]
[1740434554462,3.2078,2612.7,2610.9,3.2078]
[1740434554661,3.2078,2612.5,2611.2,15.25440601]
[1740434554858,3.2078,2612.5,2611.8,0.3603693]
[1740434555064,3.2078,2612.1,2611.8,0.3603693]
[1740434555260,5.381,2612.0,2610.9,3.2078]
[1740434555459,3.2078,2611.9,2611.0,0.7662]
[1740434555766,3.2078,2611.3,2611.1,15.25440601]
[1740434555966,0.00573745,2612.1,2610.8,18.46220601]
[1740434555967,5.467,2611.6,2610.8,18.46220601]
[1740434556167,3.2078,2610.9,2608.8,3.2078]
[1740434556368,3.2078,2610.9,2607.9,0.29948179]
[1740434556369,5.566,2610.8,2608.9,15.25440601]
[1740434556668,3.2078,2610.6,2610.1,15.25440601]
[1740434556861,5.698,2610.5,2609.6,15.25440601]
[1740434557062,8.9198,2610.4,2609.0,3.2078]
[1740434557262,5.726,2610.3,2609.1,40.8]
[1740434557462,3.2078,2610.4,2609.1,40.8]
[1740434557670,3.2078,2611.5,2610.5,15.25440601]
[1740434557871,3.2078,2612.3,2610.7,3.2078]
[1740434558072,3.2078,2612.3,2610.7,54.84096122]
[1740434558267,3.82628,2614.3,2610.7,54.84096122]
[1740434558268,3.2078,2613.0,2611.5,3.2078]
[1740434558466,3.2078,2613.0,2610.1,1.1327]
[1740434558467,3.2078,2614.2,2613.0,15.25440601]
[1740434558773,5.786,2615.3,2614.1,15.25440601]
[1740434558971,5.786,2615.3,2614.3,3.2078]
[1740434559172,3.2078,2615.8,2614.6,3.2078]
[1740434559377,0.0057368,2615.1,2614.9,3.2078]
[1740434559573,5.779,2616.0,2615.0,15.25440601]
[1740434559777,5.773,2616.3,2615.8,3.2078]
[1740434559974,5.773,2616.3,2614.1,1.91317]
[1740434559975,3.2078,2616.9,2615.6,3.2078]
[1740434560272,5.788,2617.2,2616.5,3.2078]
[1740434560471,5.788,2617.2,2616.1,18.46220601]
[1740434560667,5.782,2617.7,2617.0,3.2078]
[1740434560865,3.2078,2617.5,2616.2,3.2078]
[1740434561064,0.0057368,2616.9,2616.4,0.0057368]
[1740434561265,0.0057368,2616.9,2614.0,1.91327]
[1740434561266,3.2078,2616.5,2614.8,3.2078]
[1740434561480,3.2078,2615.1,2614.5,3.2078]
[1740434561772,3.2078,2614.6,2613.7,3.2078]
[1740434561978,0.76535,2613.9,2613.3,3.2078]
[1740434562169,21.205,2615.1,2611.9,1.91479]
[1740434562170,3.2078,2613.4,2611.9,3.2078]
[1740434562365,5.82,2613.8,2612.4,0.76576]
[1740434562366,3.2078,2612.9,2612.4,0.76576]
[1740434562566,3.2078,2612.6,2612.2,0.76583]
[1740434562769,5.826,2612.7,2611.8,3.2078]
[1740434563080,5.826,2612.7,2610.8,2.4631]
[1740434563081,3.2078,2612.4,2610.9,3.2078]
[1740434563272,3.2078,2611.5,2611.0,7.21884616]
[1740434563583,9.0428,2611.9,2610.7,3.22951023]
[1740434563773,5.852,2611.9,2611.3,7.21884616]
[1740434563977,3.2078,2611.7,2610.9,7.21884616]
[1740434564275,5.852,2611.9,2611.1,0.76615]
[1740434564481,0.0057368,2611.6,2611.2,7.21884616]
[1740434564684,3.2078,2611.3,2610.8,0.76624]
[1740434564885,3.2078,2610.9,2609.8,0.76654]
[1740434565071,3.2078,2610.2,2608.6,0.5365]
[1740434565277,23.13031,2611.3,2609.0,0.76676]
[1740434565278,3.2078,2609.2,2609.0,0.76676]
[1740434565475,3.2078,2609.2,2607.6,4.319]
[1740434565676,3.2078,2608.5,2607.6,3.2078]
[1740434565872,5.913,2608.5,2607.6,3.2078]
[1740434566179,5.913,2608.5,2607.4,3.2078]
[1740434566373,5.913,2608.5,2606.4,0.5365]
[1740434566374,3.2078,2607.8,2606.6,3.2078]
[1740434566774,3.2078,2607.3,2607.2,0.16267795]
[1740434566978,3.2078,2607.3,2606.3,3.97538]
[1740434567276,3.2078,2606.7,2605.6,3.2078]
[1740434567478,3.2078,2606.4,2606.0,0.76765]
[1740434567678,3.2078,2607.3,2606.1,3.2078]
[1740434567880,14.50574812,2607.5,2606.6,3.2078]
[1740434568085,8.12e-06,2607.5,2607.4,0.76726]
[1740434568276,3.835,2609.4,2606.5,3.2078]
[1740434568277,3.2078,2608.1,2606.5,3.2078]
[1740434568476,0.07667241,2608.5,2607.1,3.2078]
[1740434568677,5.05989875,2609.3,2608.5,0.76693]
[1740434568876,5.05989875,2609.3,2607.1,1.91837]
[1740434568877,5.05989875,2608.4,2608.3,3.2078]
[1740434569078,5.05989875,2608.4,2603.2,2.6994193]
[1740434569079,5.05989875,2608.4,2607.7,3.2078]
[1740434569273,3.2078,2609.1,2607.7,3.2078]
[1740434569472,3.2078,2609.1,2604.9,21.242]
[1740434569473,3.2078,2607.6,2605.5,4.3789]
[1740434569675,3.2078,2605.6,2604.9,3.2078]
[1740434569877,6.8,2605.5,2604.6,3.42527409]
[1740434570075,6.8,2605.5,2604.7,0.5916]
[1740434570279,6.80574812,2605.5,2605.1,0.76792]
[1740434570476,1.99425188,2605.0,2604.0,51.63316122]
[1740434570683,3.2078,2604.6,2604.4,3.29242207]
[1740434570979,6.80574812,2605.5,2605.4,0.76785]
[1740434570980,8.12e-06,2605.5,2605.4,0.76785]
[1740434571186,8.12e-06,2605.5,2604.9,3.2078]
[1740434571374,8.12e-06,2605.5,2603.9,0.5419]
[1740434571580,3.2078,2605.4,2604.7,3.2078]
[1740434571779,3.2078,2605.4,2604.1,3.2078]
[1740434571982,8.12e-06,2605.5,2605.3,3.2078]
[1740434572187,8.12e-06,2605.5,2605.3,0.76786]
[1740434572378,8.12e-06,2605.5,2604.7,3.2078]
[1740434572379,9.7678,2605.4,2604.5,3.2078]
[1740434572583,3.2078,2605.1,2604.5,3.2078]
[1740434572883,3.2078,2604.7,2603.7,3.97613]
[1740434573092,4.92934522,2605.4,2604.7,3.2078]
[1740434573284,3.2078,2604.8,2603.6,3.2078]
[1740434573479,3.2078,2604.6,2603.1,3.2078]
[1740434573682,6.755,2605.6,2604.0,3.2078]
[1740434573683,3.2078,2604.9,2604.0,3.2078]
[1740434573981,6.755,2605.6,2603.3,1.92116]
[1740434573982,3.2078,2604.7,2604.4,0.04835806]
[1740434574181,3.2078,2604.7,2602.1,4.9602024]
[1740434574182,3.2078,2603.4,2601.2,3.2078]
[1740434574384,3.2078,2601.3,2598.5,3.2078]
[1740434574685,3.2078,2601.3,2596.1,32.1]
[1740434574686,3.2078,2597.9,2595.5,3.2078]
[1740434574982,3.2078,2597.9,2592.2,24.622]
[1740434574983,3.2078,2594.4,2592.4,40.8]
[1740434575182,1.55538,2592.5,2590.2,3.2078]
[1740434575386,3.2078,2590.7,2589.4,3.2078]
[1740434575583,3.2078,2590.4,2589.1,3.2078]
[1740434575788,3.2078,2589.8,2588.2,3.2078]
[1740434575986,3.2078,2588.3,2585.2,0.3864]
[1740434576178,3.2078,2588.3,2584.1,0.3872]
[1740434576179,3.2078,2586.6,2584.1,0.3872]
[1740434576488,3.2078,2585.8,2584.9,3.2078]
[1740434576686,3.2078,2585.8,2581.5,21.281]
[1740434576687,3.2078,2583.8,2581.7,32.30185203]
[1740434576985,0.00579553,2585.6,2583.1,8.0944121]
[1740434577176,0.00579553,2585.6,2580.2,35.7114897]
[1740434577177,0.659,2589.3,2582.9,3.2078]
[1740434577376,3.2078,2585.7,2585.0,0.77389]
[1740434577576,3.2078,2582.2,2579.9,3.2078]
[1740434577786,3.2078,2579.6,2577.8,3.2078]
[1740434577977,0.39,2580.2,2576.4,3.2078]
[1740434578179,5.02281208,2579.5,2577.8,73.23816191]
[1740434578386,3.2078,2577.9,2575.8,44.78012768]
[1740434578580,0.384,2578.4,2577.9,0.9697]
[1740434578783,5.06726146,2582.0,2578.8,51.61956191]
[1740434578990,2.40247,2584.3,2581.8,3.2078]
[1740434579288,2.40247,2584.3,2578.7,38.78993]
[1740434579289,0.51939428,2587.4,2585.8,3.2078]
[1740434579589,3.2078,2585.9,2583.0,3.2078]
[1740434579780,3.2078,2585.8,2578.7,38.78562]
[1740434579980,3.2078,2585.5,2583.7,0.77419]
[1740434580183,3.2078,2585.5,2584.2,0.00579912]
[1740434580487,3.2078,2586.7,2585.1,3.2078]
[1740434580686,3.2078,2587.2,2585.9,3.2078]
[1740434580889,5.12306093,2586.6,2585.6,3.2078]
[1740434581091,3.2078,2585.9,2582.4,3.2078]
[1740434581288,3.2078,2586.5,2585.8,3.2078]
[1740434581485,3.2078,2586.6,2583.0,3.2078]
[1740434581688,3.2078,2586.8,2584.8,3.2078]
[1740434581886,3.2078,2589.9,2586.7,3.2078]
[1740434582186,40.8,2586.8,2583.8,0.3864]
[1740434582392,3.2078,2584.3,2582.4,3.2078]
[1740434582688,3.2078,2583.8,2583.3,0.01378351]
[1740434582881,0.31292966,2593.0,2585.6,3.2078]
[1740434583083,3.2078,2589.2,2587.9,3.2078]
[1740434583388,0.06171627,2589.1,2583.7,3.2078]
[1740434583591,4.98397822,2589.1,2589.0,0.00579307]
[1740434583783,3.2078,2588.6,2581.8,1.5493]
[1740434583982,3.2078,2586.2,2585.0,3.2078]
[1740434584178,3.2078,2585.5,2582.4,3.2078]
[1740434584379,3.2078,2585.2,2583.5,51.61956191]
[1740434584582,3.2078,2586.4,2584.4,42.38671467]
[1740434584785,3.2078,2585.1,2583.7,2.81636315]
[1740434584989,3.2078,2585.4,2584.4,67.88451467]
[1740434585182,3.2078,2587.6,2584.1,3.2078]
[1740434585387,5.0933451,2585.3,2582.8,42.38671467]
[1740434585581,0.77356,2585.9,2583.6,3.2078]
[1740434585788,0.50988573,2589.8,2585.4,28.45920731]
[1740434586111,0.50988573,2589.8,2583.6,3.2078]
[1740434586112,3.2078,2586.3,2585.0,3.2078]
[1740434586287,3.2078,2586.6,2584.6,3.2078]
[1740434586591,3.2078,2585.2,2584.8,28.45920731]
[1740434586784,3.2078,2585.2,2583.3,3.2078]
[1740434586985,3.2078,2585.1,2583.7,10.2788]
[1740434587187,3.2078,2584.9,2583.9,15.33173009]
[1740434587392,3.2078,2584.4,2582.9,89.99342222]
[1740434587582,3.2078,2585.0,2584.7,1.99799509]
[1740434587789,3.2078,2585.6,2584.9,1.99799509]
[1740434587982,0.50988573,2586.4,2584.5,3.2078]
[1740434588191,3.2078,2585.5,2584.9,0.45620509]
[1740434588393,40.80580495,2585.5,2584.8,3.2078]
[1740434588588,3.2078,2586.0,2585.1,0.45620509]
[1740434588788,3.2078,2586.7,2584.6,3.2078]
[1740434589090,3.2078,2586.4,2585.3,0.45620509]
[1740434589291,3.2078,2586.2,2584.6,3.2078]
[1740434589595,3.2078,2585.8,2585.7,0.45620509]
[1740434589799,3.2078,2585.8,2584.8,101.41994165]
[1740434589995,0.00580495,2585.7,2585.1,0.00580495]
[1740434590495,3.2078,2586.5,2585.1,3.2078]
[1740434590689,3.2078,2585.8,2585.1,3.2078]
[1740434590895,0.00580495,2585.7,2585.1,3.21360495]
[1740434591093,3.2078,2587.8,2586.0,3.2078]
[1740434591296,3.2078,2587.8,2585.2,4.36044713]
[1740434591297,3.2078,2587.3,2586.5,3.2078]
[1740434591490,3.2078,2587.9,2586.5,3.2078]
[1740434591791,3.98072,2588.1,2586.7,0.77331]
[1740434592094,3.2078,2587.0,2585.5,3.2078]
[1740434592293,3.2078,2586.1,2585.4,3.2078]
[1740434592497,0.00580495,2587.7,2585.3,3.2078]
[1740434592498,3.2078,2586.8,2585.3,3.2078]
[1740434592796,3.2078,2586.4,2586.3,0.77344]
[1740434592992,3.2078,2586.7,2586.3,21.429]
[1740434593308,3.2078,2586.8,2586.3,26.52242222]
[1740434593493,0.00580495,2586.6,2586.5,0.77338]
[1740434593690,0.00580495,2586.6,2586.3,21.429]
[1740434593887,3.2078,2587.3,2586.5,3.2078]
[1740434594091,3.2078,2587.8,2586.4,3.2078]
[1740434594299,3.2078,2587.8,2586.7,3.2078]
[1740434594499,3.2078,2588.4,2587.7,0.77302]
[1740434594796,3.2078,2589.6,2588.1,3.2078]
[1740434594988,3.2078,2589.7,2588.2,23.36513]
[1740434595190,2.43460896,2591.8,2589.2,3.2078]
[1740434595191,3.2078,2590.7,2589.2,3.2078]
[1740434595389,40.8,2590.6,2589.3,3.2078]
[1740434595594,40.8,2590.6,2590.5,3.97999]
[1740434595795,3.2078,2592.1,2590.5,24.6408]
[1740434595992,3.2078,2592.2,2591.3,3.2078]
[1740434596190,3.2078,2592.4,2590.9,3.2078]
[1740434596395,3.2078,2592.7,2591.5,3.2078]
[1740434596601,2.29e-06,2591.6,2591.5,0.77189]
[1740434596801,3.2078,2592.8,2591.5,3.2078]
[1740434597004,3.2078,2593.6,2592.6,3.2078]
[1740434597201,3.2078,2594.0,2592.7,21.428]
[1740434597407,3.2078,2592.9,2592.7,21.428]
[1740434597697,3.2078,2592.8,2592.7,21.428]
[1740434597897,44.0078,2592.8,2592.7,21.428]
[1740434598094,40.8,2592.8,2592.7,21.428]
[1740434598491,44.0078,2592.8,2592.7,21.428]
[1740434598692,3.20200771,2592.6,2591.6,0.5596]
[1740434598905,3.20200771,2591.7,2590.9,0.5963]
[1740434599103,3.2078,2591.0,2590.3,21.415]
[1740434599402,0.00579229,2593.1,2589.4,0.77251]
[1740434599403,3.2078,2589.5,2589.4,0.77251]
[1740434599600,21.415,2593.0,2586.7,0.9664]
[1740434599601,3.20200771,2589.2,2587.2,21.415]
[1740434599797,1.23254,2588.2,2587.3,0.07730066]
[1740434599992,5.03899473,2593.0,2587.3,0.07730066]
[1740434599993,1.45473,2587.9,2587.8,0.77299]
[1740434600293,3.2078,2587.9,2585.6,3.2078]
[1740434600493,3.2078,2586.8,2585.4,21.415]
[1740434600695,3.2078,2586.7,2585.3,3.2078]
[1740434600896,3.2078,2586.7,2585.6,1.93406]
[1740434601204,3.2078,2588.6,2586.6,3.2078]
[1740434601398,0.50508896,2588.9,2585.7,4.8484143]
[1740434601399,0.50508896,2588.9,2588.7,0.7727]
[1740434601598,0.50508896,2589.2,2588.8,3.2078]
[1740434601792,11.84028,2590.9,2589.4,3.2078]
[1740434602096,3.2078,2591.6,2591.5,0.77189]
[1740434602299,7.02582896,2592.1,2591.3,3.2078]
[1740434602600,7.02582896,2592.1,2589.5,0.9654]
[1740434602601,7.02582896,2591.3,2590.1,1.93077]
[1740434602807,3.2078,2591.5,2590.6,0.77216]
[1740434602808,3.2078,2590.7,2590.6,0.77216]
[1740434603099,3.2078,2590.7,2589.9,3.2078]
[1740434603292,6.0,2591.5,2589.2,1.93141]
[1740434603293,2.2427,2590.3,2589.2,1.93143]
[1740434603492,3.2078,2590.0,2588.9,0.581]
[1740434603700,3.2078,2589.4,2589.3,0.77254]
[1740434603900,0.72957788,2590.2,2590.1,0.7723]
[1740434604103,7.88e-06,2590.2,2590.1,0.7723]
[1740434604293,7.02583684,2590.2,2589.2,0.828]
[1740434604493,10.23362896,2589.5,2587.3,3.2078]
[1740434604703,3.2078,2588.4,2587.1,1.93296]
[1740434605000,3.2078,2588.6,2588.5,0.77278]
[1740434605200,3.2078,2590.1,2588.5,3.2078]
[1740434605409,10.23362896,2590.1,2588.3,21.414]
[1740434605702,7.02582896,2588.9,2588.8,0.77267]
[1740434605901,7.02582896,2588.5,2588.2,0.77287]
[1740434606103,7.02582896,2588.0,2586.8,1.93323]
[1740434606303,3.2078,2587.6,2587.5,0.77308]
[1740434606603,3.2078,2587.6,2586.1,8.77924445]
[1740434606604,7.02582896,2586.7,2585.5,1.93417]
[1740434606806,3.2078,2585.6,2585.5,0.77368]
[1740434607102,3.2078,2585.6,2583.6,0.5439]
[1740434607401,3.2078,2585.0,2583.6,0.5439]
[1740434607603,3.2078,2585.1,2584.1,3.2078]
[1740434607802,0.00580439,2584.9,2584.3,0.00580439]
[1740434608104,0.00580439,2584.9,2583.6,0.5439]
[1740434608105,7.02582896,2583.5,2582.1,5.14451]
[1740434608301,10.23362896,2582.4,2582.1,0.77469]
[1740434608611,3.2078,2582.2,2579.3,5.14661]
[1740434608808,7.02582896,2581.1,2579.7,3.2078]
[1740434609099,7.02582896,2581.1,2578.6,1.0974]
[1740434609100,7.02582896,2579.4,2578.6,3.7613]
[1740434609403,6.09384001,2577.6,2577.3,3.18307439]
[1740434609606,3.2078,2576.0,2574.0,3.2078]
[1740434609799,6.09384001,2573.2,2572.2,3.2078]
[1740434610001,3.2078,2571.9,2570.7,0.28377219]
[1740434610304,5.85578324,2570.1,2570.0,13.3]
[1740434610698,3.2078,2569.1,2564.9,3.89936]
[1740434610900,21.425,2570.1,2563.3,3.2078]
[1740434610901,3.2078,2565.7,2563.3,3.2078]
[1740434611100,3.2078,2565.2,2565.1,0.77983]
[1740434611297,3.2078,2565.5,2564.8,3.2078]
[1740434611499,0.00583011,2570.3,2566.5,1.94845]
[1740434611500,11.1419,2567.2,2566.5,1.94845]
[1740434611699,3.2078,2566.6,2562.8,3.2078]
[1740434611901,3.2078,2564.8,2563.4,3.2078]
[1740434612107,3.2078,2566.8,2565.0,0.77986]
[1740434612301,2.03e-06,2567.1,2565.8,3.2078]
[1740434612600,2.03e-06,2567.1,2561.8,0.54901074]
[1740434612601,3.2078,2565.4,2563.3,3.2078]
[1740434612809,3.2078,2565.5,2563.7,3.2078]
[1740434613105,3.2078,2570.3,2566.9,3.2078]
[1740434613305,3.2078,2570.3,2563.8,40.87159668]
[1740434613306,7.107,2570.1,2569.8,3.2078]
[1740434613499,3.2078,2571.8,2569.8,3.2078]
[1740434613803,3.2078,2571.8,2570.0,3.2078]
[1740434614004,6.90524897,2575.6,2570.7,6.4156]
[1740434614306,3.2078,2576.4,2575.2,3.2078]
[1740434614608,3.2078,2576.2,2574.3,3.2078]
[1740434614800,3.2078,2576.6,2574.9,3.2078]
[1740434615000,3.8772,2579.7,2573.1,27.6]
[1740434615001,3.2078,2578.4,2576.2,3.2078]
[1740434615199,3.2078,2578.6,2576.7,3.1785671]
[1740434615395,2.54223748,2585.0,2577.8,0.77598]
[1740434615396,0.77549,2579.5,2577.8,0.77598]
[1740434615696,3.2078,2580.7,2579.4,40.8]
[1740434615895,3.2078,2581.1,2579.4,40.8]
[1740434616099,3.2078,2582.2,2580.6,3.2078]
[1740434616299,3.2078,2582.2,2579.4,40.8]
[1740434616300,1.93643,2582.6,2581.4,3.2078]
[1740434616501,0.07744433,2582.5,2580.9,3.2078]
[1740434616708,1.55638452,2582.1,2580.0,3.2078]
[1740434616905,3.2078,2581.7,2580.1,9.6234]
[1740434617205,3.2078,2580.2,2578.6,6.4156]
[1740434617405,3.2078,2580.2,2578.3,3.2078]
[1740434617598,3.2078,2580.1,2578.8,16.039]
[1740434617804,0.0058117,2579.7,2579.6,3.2078]
[1740434618103,4.9960609,2581.8,2581.1,9.6234]
[1740434618300,0.07746833,2581.7,2580.6,3.2078]
[1740434618607,3.2078,2582.9,2579.6,40.8]
[1740434618608,3.2078,2583.7,2581.6,3.2078]
[1740434618904,3.2078,2584.3,2583.6,9.6234]
[1740434619103,3.2078,2583.7,2581.1,3.2078]
[1740434619406,3.86915,2585.1,2581.8,8.44767]
[1740434619407,3.2078,2582.2,2581.8,8.44767]
[1740434619606,3.2078,2582.2,2579.9,4.94271371]
[1740434619607,3.2078,2582.7,2581.9,8.44767]
[1740434619905,3.2078,2582.6,2581.0,3.2078]
[1740434620106,1.93463,2585.0,2579.7,4.98002918]
[1740434620107,3.2078,2581.1,2579.7,8.18782918]
[1740434620298,3.2078,2581.1,2580.1,3.2078]
[1740434620603,3.2078,2579.8,2577.3,3.2078]
[1740434620805,3.2078,2579.8,2577.7,3.2078]
[1740434621000,5.06757266,2583.1,2579.0,3.2078]
[1740434621309,3.2078,2583.1,2581.8,3.2078]
[1740434621606,3.2078,2583.6,2580.6,3.2078]
[1740434621797,3.2136117,2581.3,2579.8,3.2078]
[1740434622104,3.2078,2580.8,2579.8,3.2078]
[1740434622311,3.2078,2580.4,2578.6,3.2078]
[1740434622497,3.2078,2578.9,2577.6,21.496]
[1740434622696,3.2078,2578.9,2576.3,0.5919]
[1740434622697,1.13845,2578.1,2577.2,3.2078]
[1740434622904,3.2078,2580.1,2578.0,3.2078]
[1740434623100,3.2078,2581.7,2579.8,3.2078]
[1740434623299,3.2078,2581.4,2580.2,3.2078]
[1740434623501,0.0058117,2579.3,2578.3,3.2078]
[1740434623703,3.2078,2578.4,2577.4,3.2078]
[1740434623903,3.2078,2578.1,2576.6,6.0]
[1740434624110,3.2078,2580.4,2577.5,3.2078]
[1740434624408,2.39926,2582.6,2579.5,3.2078]
[1740434624602,2.39926,2582.6,2578.2,39.56238221]
[1740434624603,4.65046359,2581.9,2581.7,3.2078]
[1740434624808,4.65046359,2581.7,2580.7,3.2078]
[1740434624997,4.65046359,2583.1,2581.3,3.2078]
[1740434625202,4.65046359,2583.5,2582.0,1.93676]
[1740434625402,4.65046359,2582.8,2582.1,24.7038]
[1740434625609,3.2078,2582.5,2581.0,3.2078]
[1740434625798,3.2078,2582.6,2581.3,3.2078]
[1740434625999,3.2078,2586.0,2582.5,3.2078]
[1740434626199,3.2078,2586.0,2582.2,0.0058117]
[1740434626200,3.2078,2585.2,2583.3,3.2078]
[1740434626402,3.2078,2586.1,2584.8,1.93466]
[1740434626605,1.99377,2590.2,2586.0,3.2078]
[1740434626606,16.28172308,2588.7,2586.0,3.2078]
[1740434626807,0.01726496,2588.3,2588.2,0.77287]
[1740434626999,13.07392308,2589.0,2588.2,24.6968]
[1740434627205,9.38589308,2589.0,2588.9,0.77266]
[1740434627399,9.38589308,2589.0,2588.7,0.77272]
[1740434627598,3.2078,2588.9,2587.4,3.2078]
[1740434627799,9.38589308,2589.0,2587.4,6.0]
[1740434628003,9.38589308,2589.0,2588.3,3.2078]
[1740434628196,3.12655308,2589.0,2588.9,3.98046]
[1740434628510,6.6307454,2588.8,2588.5,3.2078]
[1740434628706,6.6307454,2588.7,2588.2,3.2078]
[1740434629006,3.2078,2588.6,2587.1,3.2078]
[1740434629205,6.6307454,2588.6,2587.2,0.07730364]
[1740434629405,6.6307454,2588.6,2586.2,3.2078]
[1740434629406,6.6307454,2587.6,2586.2,3.2078]
[1740434629602,6.6307454,2586.3,2583.9,3.2078]
[1740434629804,2.07713,2584.6,2582.6,3.595]
[1740434630000,1.93201,2588.5,2582.6,3.595]
[1740434630001,3.2078,2584.0,2582.6,1.93634]
[1740434630206,3.2078,2585.1,2582.8,3.2078]
[1740434630502,3.2078,2585.1,2582.6,0.37555525]
[1740434630503,3.2078,2583.4,2583.3,0.77434]
[1740434630710,3.2078,2583.4,2583.0,0.00580002]
[1740434630711,3.2078,2584.1,2583.0,0.00580002]
[1740434630900,3.2078,2584.7,2583.0,9.95510002]
[1740434631207,3.2078,2586.9,2583.9,3.2078]
[1740434631408,3.2078,2585.9,2584.2,3.2078]
[1740434631708,3.2078,2584.3,2583.7,0.7742]
[1740434631904,3.2078,2584.4,2583.0,0.7415]
[1740434632210,3.2078,2584.1,2583.5,3.2078]
[1740434632506,9.8385454,2583.8,2583.0,0.7415]
[1740434632706,9.8385454,2583.8,2580.4,0.5966]
[1740434632707,9.46299015,2582.7,2581.6,0.77484]
[1740434632898,3.2078,2583.5,2581.5,21.459]
[1740434633102,0.00580002,2584.3,2582.6,3.2078]
[1740434633399,3.2078,2583.1,2582.5,3.2078]
[1740434633609,3.2078,2584.1,2582.0,3.2078]
[1740434633905,3.2078,2586.1,2584.0,3.2078]
[1740434634102,3.2078,2586.2,2586.1,0.7735]
[1740434634302,3.2078,2587.4,2585.5,3.2078]
[1740434634502,3.2078,2587.9,2586.5,3.2078]
[1740434634707,3.2078,2587.9,2585.6,0.07735148]
[1740434634708,3.2078,2587.1,2586.7,40.8]
[1740434634900,9.46299015,2587.4,2586.7,40.8]
[1740434635103,3.2078,2588.4,2586.7,46.8]
[1740434635310,0.00580002,2587.2,2586.7,43.2724]
[1740434635605,23.61459185,2586.8,2586.7,0.9664]
[1740434635804,3.2078,2587.8,2586.6,1.83410002]